{"text_format":"1","workbook":"xlsx","n_sheets":2,"sheets":["Business Time Study Template","Business Time Study - BLANK"],"not_rendered":{"charts":0,"images":2,"macros":0,"external_links":0,"defined_names":2,"comments":0,"pivot_tables":0},"unopened":[],"bounds":{"document_bytes":16777216,"sheet_cells":100000,"rows_first":2000,"rows_last":500,"rows_between":2000,"halvings":0,"cell_chars":16384,"cell_head_chars":4096},"cells_cut":0,"cells_raw":0,"read":"whole","date_system":"1900"}

{"sheet":"Business Time Study Template","index":0,"n_rows":33,"n_cols":19,"rows_kept":33,"cut":false,"hidden":false,"merged":[[0,10,0,17],[0,1,0,9],[2,2,2,8],[2,1,3,1],[2,9,3,9],[2,17,3,17],[2,18,3,18],[2,10,2,16],[32,1,34,18]]}
[null,"BUSINESS TIME STUDY TEMPLATE"]
[]
[null,"ACTIVITY DESCRIPTION","TIME IN MINUTES",null,null,null,null,null,null,"WEEK 1 TOTALS","TIME IN MINUTES",null,null,null,null,null,null,"WEEK 2 TOTALS","NOTES / TAKEAWAY FROM TIME STUDY"]
[null,null,"Su","M","T","W ","R","F","Sa",null,"Su","M","T","W ","R","F","Sa"]
[null,"Account Management",5,null,null,null,null,null,null,{"$f":"SUM(C5:I5)","v":5},5,null,null,null,null,null,null,{"$f":"SUM(K5:Q5)","v":5}]
[null,"Administration",null,50,200,40,50,null,null,{"$f":"SUM(C6:I6)","v":340},null,50,200,40,50,null,null,{"$f":"SUM(K6:Q6)","v":340}]
[null,"Client Outreach",null,null,null,null,null,null,7,7,null,null,null,null,null,null,7,7]
[null,"Development",null,null,null,null,null,null,null,0,null,null,null,null,null,null,null,0]
[null,"Email - Internal",null,null,null,null,null,15,null,15,null,null,null,null,null,15,null,15]
[null,"Email - External",null,null,null,null,null,null,null,0,null,null,null,null,null,null,null,0]
[null,"Invoicing",null,null,null,null,null,null,null,0,null,125,null,null,null,null,null,125]
[null,"Issues",null,null,null,null,null,null,null,{"$f":"SUM(C12:I12)","v":0},null,null,null,null,null,null,null,{"$f":"SUM(K12:Q12)","v":0}]
[null,"Meetings - Team",null,null,null,null,null,null,null,0,null,null,null,null,null,null,null,0]
[null,"Meetings - One-on-One",null,null,null,null,null,null,null,0,null,null,null,null,null,null,null,0]
[null,"Meetings - Active Clients",null,null,null,null,null,null,null,0,null,null,null,null,null,null,null,0]
[null,"Meetings - Potential Clients",null,null,null,null,null,null,null,0,null,null,null,null,null,null,null,0]
[null,"Research",null,null,null,null,null,null,null,0,null,null,null,null,null,null,null,0]
[null,"Requests",null,null,null,null,null,null,null,0,null,null,null,null,null,null,null,0]
[null,"Team Building",null,null,null,null,null,null,null,0,null,null,null,null,null,null,null,0]
[null,"Team Management",null,null,null,null,null,null,null,0,null,null,null,null,null,null,null,0]
[null,"Training",null,null,null,null,null,null,null,0,null,null,null,null,null,null,null,0]
[null,"Travel",null,null,null,null,null,null,null,0,null,null,null,null,null,null,null,0]
[null,null,null,null,null,null,null,null,null,0,null,null,null,null,null,null,null,0]
[null,null,null,null,null,null,null,null,null,0,null,null,null,null,null,null,null,0]
[null,null,null,null,null,null,null,null,null,0,null,null,null,null,null,null,null,0]
[null,null,null,null,null,null,null,null,null,0,null,null,null,null,null,null,null,0]
[null,null,null,null,null,null,null,null,null,0,null,null,null,null,null,null,null,0]
[null,null,null,null,null,null,null,null,null,0,null,null,null,null,null,null,null,0]
[null,null,null,null,null,null,null,null,null,0,null,null,null,null,null,null,null,0]
[null,null,null,null,null,null,null,null,null,0,null,null,null,null,null,null,null,0]
[null,"GRAND TOTALS",{"$f":"SUM(C5:C30)","v":5},{"$f":"SUM(D5:D30)","v":50},200,40,50,15,7,367,{"$f":"SUM(K5:K30)","v":5},{"$f":"SUM(L5:L30)","v":175},{"$f":"SUM(M5:M30)","v":200},{"$f":"SUM(N5:N30)","v":40},{"$f":"SUM(O5:O30)","v":50},{"$f":"SUM(P5:P30)","v":15},{"$f":"SUM(Q5:Q30)","v":7},492]
[]
[null,"CLICK HERE TO CREATE BUSINESS TIME STUDY TEMPLATES IN SMARTSHEET"]

{"sheet":"Business Time Study - BLANK","index":1,"n_rows":31,"n_cols":19,"rows_kept":31,"cut":false,"hidden":false,"merged":[[2,18,3,18],[0,1,0,9],[0,10,0,17],[2,1,3,1],[2,2,2,8],[2,9,3,9],[2,10,2,16],[2,17,3,17]]}
[null,"BUSINESS TIME STUDY TEMPLATE"]
[]
[null,"ACTIVITY DESCRIPTION","TIME IN MINUTES",null,null,null,null,null,null,"WEEK 1 TOTALS","TIME IN MINUTES",null,null,null,null,null,null,"WEEK 2 TOTALS","NOTES / TAKEAWAY FROM TIME STUDY"]
[null,null,"Su","M","T","W ","R","F","Sa",null,"Su","M","T","W ","R","F","Sa"]
[null,null,null,null,null,null,null,null,null,{"$f":"SUM(C5:I5)","v":0},null,null,null,null,null,null,null,{"$f":"SUM(K5:Q5)","v":0}]
[null,null,null,null,null,null,null,null,null,{"$f":"SUM(C6:I6)","v":0},null,null,null,null,null,null,null,{"$f":"SUM(K6:Q6)","v":0}]
[null,null,null,null,null,null,null,null,null,0,null,null,null,null,null,null,null,0]
[null,null,null,null,null,null,null,null,null,0,null,null,null,null,null,null,null,0]
[null,null,null,null,null,null,null,null,null,0,null,null,null,null,null,null,null,0]
[null,null,null,null,null,null,null,null,null,0,null,null,null,null,null,null,null,0]
[null,null,null,null,null,null,null,null,null,0,null,null,null,null,null,null,null,0]
[null,null,null,null,null,null,null,null,null,0,null,null,null,null,null,null,null,0]
[null,null,null,null,null,null,null,null,null,0,null,null,null,null,null,null,null,0]
[null,null,null,null,null,null,null,null,null,0,null,null,null,null,null,null,null,0]
[null,null,null,null,null,null,null,null,null,0,null,null,null,null,null,null,null,0]
[null,null,null,null,null,null,null,null,null,0,null,null,null,null,null,null,null,0]
[null,null,null,null,null,null,null,null,null,0,null,null,null,null,null,null,null,0]
[null,null,null,null,null,null,null,null,null,0,null,null,null,null,null,null,null,0]
[null,null,null,null,null,null,null,null,null,0,null,null,null,null,null,null,null,0]
[null,null,null,null,null,null,null,null,null,0,null,null,null,null,null,null,null,0]
[null,null,null,null,null,null,null,null,null,0,null,null,null,null,null,null,null,0]
[null,null,null,null,null,null,null,null,null,0,null,null,null,null,null,null,null,0]
[null,null,null,null,null,null,null,null,null,0,null,null,null,null,null,null,null,0]
[null,null,null,null,null,null,null,null,null,0,null,null,null,null,null,null,null,0]
[null,null,null,null,null,null,null,null,null,0,null,null,null,null,null,null,null,0]
[null,null,null,null,null,null,null,null,null,0,null,null,null,null,null,null,null,0]
[null,null,null,null,null,null,null,null,null,0,null,null,null,null,null,null,null,0]
[null,null,null,null,null,null,null,null,null,0,null,null,null,null,null,null,null,0]
[null,null,null,null,null,null,null,null,null,0,null,null,null,null,null,null,null,0]
[null,null,null,null,null,null,null,null,null,0,null,null,null,null,null,null,null,0]
[null,"GRAND TOTALS",{"$f":"SUM(C5:C30)","v":0},{"$f":"SUM(D5:D30)","v":0},0,0,0,0,0,0,{"$f":"SUM(K5:K30)","v":0},{"$f":"SUM(L5:L30)","v":0},0,0,0,0,0,0]